bitfinex/quotes_ETHUSD_20241223
["timestamp","ask_amount","ask_price","bid_price","bid_amount"]
[1734970518770,3.78702185,3284.4,3284.0,6.04502]
[1734970519081,1.5213,3284.6,3283.4,3.0]
[1734970519300,0.03049866,3284.5,3283.1,3.0]
[1734970519496,1.5911,3284.4,3283.1,1.195]
[1734970519705,1.5911,3284.4,3283.0,0.55]
[1734970519850,1.62159866,3284.4,3283.0,0.55]
[1734970520196,1.5911,3284.4,3283.2,0.60472985]
[1734970520549,1.62159866,3284.4,3283.2,0.60472985]
[1734970520970,1.5911,3284.4,3283.2,0.60472985]
[1734970521169,1.5911,3284.4,3283.3,0.48772435]
[1734970521403,1.5911,3284.4,3283.2,0.60472985]
[1734970522412,1.5911,3284.4,3283.2,0.6351801]
[1734970522566,1.5911,3284.4,3283.2,0.60472985]
[1734970523210,1.5911,3284.4,3283.3,0.03045026]
[1734970523368,1.5911,3284.4,3283.3,3.03045026]
[1734970523571,1.5067,3285.5,3283.8,8.95]
[1734970523763,1.5067,3285.5,3283.9,3.03044098]
[1734970524012,1.5067,3285.5,3284.2,0.60843814]
[1734970525513,1.5067,3285.5,3284.3,0.03044043]
[1734970525729,1.5067,3285.5,3284.2,0.63887782]
[1734970525883,1.5067,3285.5,3284.3,0.36388778]
[1734970526285,1.5067,3285.5,3284.2,0.60843814]
[1734970526876,1.89991017,3285.5,3284.2,0.60843814]
[1734970527099,2.01901017,3285.4,3283.9,0.60471363]
[1734970527287,1.6258,3285.2,3283.9,0.60471363]
[1734970527491,2.01901017,3285.2,3283.6,1.27251361]
[1734970527737,1.6258,3285.2,3283.9,3.04512]
[1734970527940,1.6258,3285.2,3284.1,3.04493]
[1734970528100,1.6258,3285.2,3284.2,0.55]
[1734970528324,1.6258,3285.2,3284.5,0.61924532]
[1734970528493,0.03049866,3285.1,3284.2,3.0]
[1734970528816,1.6258,3285.2,3284.2,3.51647147]
[1734970528999,1.6258,3285.2,3284.4,0.61425465]
[1734970531106,4.5044,3286.9,3284.5,10.5686]
[1734970531320,1.5044,3286.8,3284.6,11.98043397]
[1734970531527,1.5044,3286.8,3284.6,14.9945]
[1734970531721,1.5044,3286.8,3284.7,1.66131]
[1734970531894,1.5044,3286.6,3284.8,0.03043193]
[1734970532105,1.58739866,3286.5,3284.7,1.66131]
[1734970532312,1.5569,3286.4,3285.0,3.0]
[1734970532512,1.5569,3286.9,3285.7,1.5918]
[1734970532737,0.0210745,3287.0,3286.3,0.62115364]
[1734970533111,0.0210745,3287.0,3286.7,3.0]
[1734970533313,0.0210745,3287.0,3286.4,0.04130717]
[1734970533541,0.0210745,3287.0,3286.8,0.04115409]
[1734970533750,0.0210745,3287.0,3286.3,0.6515745]
[1734970534052,0.0210745,3287.0,3286.4,0.04130717]
[1734970534268,0.0210745,3287.0,3286.5,1.5918]
[1734970534406,0.0210745,3287.0,3286.6,0.16331072]
[1734970534746,0.0210745,3287.0,3286.7,0.04119236]
[1734970535057,0.0210745,3287.0,3286.4,0.03042066]
[1734970535203,0.0210745,3287.0,3286.8,0.04115409]
[1734970535397,0.0210745,3287.0,3286.4,3.03042066]
[1734970535615,0.0210745,3287.0,3286.5,0.04126889]
[1734970535860,0.0210745,3287.0,3286.6,0.30716895]
[1734970536231,0.0210745,3287.0,3286.7,0.04119236]
[1734970537127,0.0210745,3287.0,3286.9,7.60438]
[1734970537534,0.0210745,3287.0,3286.9,16.59549583]
[1734970538271,0.0210745,3287.0,3286.9,11.99111583]
[1734970538551,0.0210745,3287.0,3286.9,1.24022741]
[1734970538755,0.0210745,3287.0,3286.9,0.04111583]
[1734970539057,1.5482,3287.9,3286.7,0.65092789]
[1734970539221,1.5482,3287.9,3286.9,0.03224063]
[1734970539406,1.5482,3287.9,3286.9,3.07458063]
[1734970539631,1.5482,3287.9,3287.1,3.0]
[1734970539833,1.5482,3287.9,3287.2,1.22701813]
[1734970541560,1.5423,3289.2,3287.2,1.22701813]
[1734970541766,1.5423,3289.0,3287.4,0.59985485]
[1734970542149,1.5423,3289.0,3287.5,0.03181362]
[1734970542688,1.5423,3289.0,3287.5,0.06222453]
[1734970542977,1.5423,3289.0,3287.5,3.06222453]
[1734970543177,1.5423,3289.0,3287.6,0.67039594]
[1734970543419,1.5423,3289.0,3287.7,1.54690631]
[1734970543687,1.5423,3289.0,3287.9,11.95]
[1734970544154,0.03049866,3288.9,3288.0,0.03141301]
[1734970544498,1.5423,3289.0,3288.0,0.03141301]
[1734970544778,1.5423,3289.0,3288.0,1.22955431]
[1734970545401,1.5423,3289.0,3288.1,0.03040574]
[1734970545536,1.5423,3289.0,3288.1,4.68430574]
[1734970545735,1.5423,3289.0,3288.2,0.03133655]
[1734970546193,1.5423,3289.0,3288.3,0.03040401]
[1734970546485,1.5423,3289.0,3288.4,0.03110456]
[1734970546840,0.1654251,3290.2,3289.9,1.6539]
[1734970547040,1.53100569,3293.2,3290.3,3.03922]
[1734970547041,0.03049866,3292.8,3290.3,3.03922]
[1734970547240,0.03049866,3292.8,3290.7,3.0]
[1734970547463,0.03049866,3293.1,3290.8,0.06262789]
[1734970547887,0.03049866,3293.1,3290.8,0.03224792]
[1734970548179,0.03049866,3293.1,3290.9,0.61659664]
[1734970548951,0.03049866,3293.1,3290.9,1.5885]
[1734970549195,3.67832378,3293.4,3290.9,1.5885]
[1734970549196,0.1654251,3293.4,3291.0,0.18922774]
[1734970549399,0.03049866,3293.3,3291.3,3.0]
[1734970549722,0.03049866,3293.3,3291.2,6.15220764]
[1734970549900,1.5689,3293.2,3291.2,6.15220764]
[1734970550050,0.03049866,3293.1,3291.2,6.15220764]
[1734970550401,1.5689,3293.0,3291.3,1.51022076]
[1734970550555,0.1654251,3293.4,3291.2,3.0]
[1734970550556,1.59939866,3292.9,3291.2,3.0]
[1734970551999,1.59939866,3292.9,3291.0,0.77550761]
[1734970552000,1.6,3292.8,3291.0,0.15885]
[1734970552163,1.56569866,3292.7,3290.6,3.0]
[1734970552357,1.5352,3292.5,3290.5,1.6572]
[1734970552703,1.5352,3292.5,3290.1,8.95]
[1734970552704,1.5352,3292.3,3290.3,0.62129185]
[1734970552908,1.6363,3292.1,3290.3,0.62129185]
[1734970553254,1.6363,3292.1,3290.4,1.30577059]
[1734970553467,1.6363,3292.1,3290.4,1.27538838]
[1734970554199,1.6363,3291.9,3290.3,3.62129185]
[1734970554399,0.03049866,3291.8,3290.3,3.62129185]
[1734970554607,1.6372,3291.7,3290.3,3.62129185]
[1734970556718,1.5715,3291.5,3290.0,1.364355]
[1734970556873,1.5715,3291.3,3289.7,3.15220764]
[1734970557210,1.5799,3291.1,3289.8,0.59978125]
[1734970557412,1.5799,3290.9,3289.2,4.79140764]
[1734970557578,0.03049866,3290.8,3289.2,4.79140764]
[1734970557759,1.5799,3290.9,3289.2,4.79140764]
[1734970557760,1.5799,3290.9,3289.4,0.61294183]
[1734970557958,1.5799,3290.9,3289.5,0.03039094]
[1734970558212,1.5799,3290.9,3289.4,0.61294183]
[1734970558504,0.03049866,3290.8,3289.4,0.61294183]
[1734970558704,1.6629,3290.7,3289.3,1.99616095]
[1734970558908,1.6629,3290.7,3289.3,0.62202019]
[1734970559709,1.6629,3290.5,3289.3,0.62202019]
[1734970560415,1.6629,3290.5,3288.8,1.6465]
[1734970560614,1.5067,3290.4,3289.2,0.61507433]
[1734970560819,0.59703946,3291.6,3289.4,1.5614]
[1734970560963,1.5923,3292.0,3289.5,0.18956957]
[1734970561167,1.5923,3291.8,3289.5,0.18956957]
[1734970561367,1.5923,3291.6,3289.5,9.13956957]
[1734970561577,1.5411,3291.5,3289.5,9.10917983]
[1734970561805,1.5411,3291.5,3289.6,3.0]
[1734970562004,1.5411,3291.5,3289.9,3.0]
[1734970562203,1.5411,3291.5,3290.1,3.0]
[1734970562628,1.5411,3291.5,3290.0,3.0]
[1734970562925,1.5411,3291.5,3290.0,3.03038435]
[1734970563405,1.5411,3291.5,3290.0,11.98038435]
[1734970563600,1.5411,3291.5,3290.1,1.19803844]
[1734970563811,1.5411,3291.5,3290.2,4.61358435]
[1734970564118,1.5411,3291.5,3290.4,0.60779456]
[1734970565328,1.5411,3291.5,3290.4,0.63817679]
[1734970565604,1.5411,3291.5,3290.4,0.60779456]
[1734970565994,1.5411,3291.5,3290.4,0.63817679]
[1734970566498,1.5411,3291.5,3290.4,0.60779456]
[1734970566949,1.5411,3291.5,3290.4,0.638178]
[1734970567538,1.5411,3291.5,3290.6,3.0]
[1734970567839,1.5411,3291.5,3290.7,0.63427887]
[1734970568054,1.5411,3291.5,3290.7,0.6039]
[1734970568347,1.5411,3291.5,3290.2,8.95]
[1734970568530,1.5944,3291.3,3290.2,0.60468673]
[1734970568696,3.03724,3292.5,3290.2,0.60468673]
[1734970568898,3.0,3292.1,3290.2,0.60468673]
[1734970569245,1.62489866,3292.0,3290.2,1.5601554]
[1734970570050,1.5944,3292.0,3290.2,1.59053985]
[1734970570201,1.5944,3292.0,3290.3,3.0]
[1734970570542,3.0,3292.8,3290.2,0.95546867]
[1734970570543,1.62599866,3291.9,3290.2,0.95546867]
[1734970571246,1.5955,3291.7,3289.8,3.0]
[1734970571444,1.5955,3291.5,3289.9,0.61472936]
[1734970571595,1.5955,3291.3,3289.9,0.61472936]
[1734970572544,1.62599866,3291.2,3289.7,1.663]
[1734970572849,1.5955,3291.2,3289.8,0.6108298]
[1734970573545,1.5955,3291.2,3289.9,0.03038696]
[1734970573715,1.5955,3291.2,3289.8,0.6108298]
[1734970573926,1.62599866,3291.1,3289.8,0.97495148]
[1734970574220,1.5955,3290.9,3289.2,8.95]
[1734970574553,1.5955,3290.7,3288.9,8.95]
[1734970574707,1.62599866,3290.6,3288.9,9.56436378]
[1734970574907,1.62599866,3290.6,3289.0,0.95643638]
[1734970575551,1.5955,3290.4,3289.0,0.95643638]
[1734970575699,1.5955,3290.2,3289.0,0.95643638]
[1734970575900,1.5955,3290.1,3289.0,0.95643638]
[1734970576446,1.68069866,3290.0,3288.8,0.61223121]
[1734970576631,1.68069866,3290.0,3288.0,8.95]
[1734970576945,1.68069866,3290.0,3288.1,3.07165101]
[1734970576946,1.6502,3290.0,3288.1,3.07165101]
[1734970577248,1.6502,3290.0,3288.6,0.62025238]
[1734970577459,1.6502,3290.0,3288.7,1.6736964]
[1734970577661,1.6502,3290.0,3288.8,0.22939488]
[1734970578463,1.68069866,3289.9,3288.6,0.62025238]
[1734970579027,1.6502,3289.9,3288.6,0.62025238]
[1734970579411,1.6502,3289.9,3288.7,0.03040212]
[1734970579760,1.6502,3289.9,3288.6,0.62025238]
[1734970580317,1.6502,3289.9,3288.6,0.65065126]
[1734970580518,1.6502,3289.9,3288.7,0.36506513]
[1734970580720,1.6502,3289.9,3288.8,0.03040165]
[1734970580914,1.6502,3289.9,3288.8,0.0303993]
[1734970581164,1.6502,3289.9,3288.7,3.36506513]
[1734970581317,1.6502,3289.9,3288.7,3.39546401]
[1734970581518,1.6502,3289.9,3288.8,0.56458164]
[1734970582014,1.6224,3289.7,3288.8,0.56458164]
[1734970582216,1.65289866,3289.6,3288.6,0.62025238]
[1734970582441,1.65289866,3289.6,3288.4,8.95]
[1734970582638,1.65289866,3289.6,3288.5,0.04620359]
[1734970583029,1.65289866,3289.6,3287.9,1.27251361]
[1734970583365,1.6224,3289.6,3288.3,1.5516]
[1734970583588,1.6224,3289.6,3288.4,0.48967569]
[1734970583759,1.6224,3289.6,3288.4,0.53613233]
[1734970584064,1.5384,3290.7,3288.4,12.48613233]
[1734970584373,1.6212,3290.5,3288.4,12.45573264]
[1734970584551,1.65169866,3290.4,3288.4,12.45573264]
[1734970584881,1.6212,3290.4,3288.9,0.59645079]
[1734970585074,1.6212,3290.4,3288.9,0.62684744]
[1734970585264,1.6212,3290.4,3288.9,0.59645079]
[1734970585465,1.5945,3290.2,3288.9,0.59645079]
[1734970586681,1.5945,3290.2,3289.0,0.03039666]
[1734970587238,1.5945,3290.2,3289.6,0.60669239]
[1734970587783,1.5945,3290.2,3289.2,3.0]
[1734970587939,1.53199866,3290.1,3289.1,0.6090699]
[1734970588136,3.03854,3291.1,3288.6,4.27251361]
[1734970588137,1.53199866,3290.0,3288.6,4.27251361]
[1734970588782,1.5015,3290.0,3288.6,3.0]
[1734970588983,1.5015,3290.0,3288.7,0.44007333]
[1734970589145,0.55,3289.7,3288.5,1.40073326]
[1734970589481,1.5015,3289.6,3288.7,0.6183361]
[1734970589642,0.55,3289.5,3288.7,0.6183361]
[1734970592940,1.5015,3289.6,3288.8,0.03040236]
[1734970593141,1.519,3290.0,3288.9,1.5153]
[1734970593387,1.519,3290.0,3289.0,0.18496698]
[1734970594888,0.55,3289.9,3289.0,0.15457024]
[1734970596687,0.55,3289.9,3289.4,0.60238723]
[1734970596870,1.519,3290.0,3289.4,0.60238723]
[1734970597657,1.5545,3291.4,3289.5,0.03039361]
[1734970597980,1.5545,3291.4,3289.4,0.60238723]
[1734970597981,1.58499866,3291.4,3289.4,0.60238723]
[1734970598148,1.5545,3291.2,3289.5,0.22240792]
[1734970598343,1.5545,3291.1,3289.5,0.22240792]
[1734970598982,0.55,3291.0,3289.5,0.22240792]
[1734970599178,0.55,3290.8,3289.5,0.25279995]
[1734970599366,0.55,3290.8,3289.5,0.22240792]
[1734970599747,1.5545,3290.5,3289.5,0.22240792]
[1734970599995,0.55,3290.4,3289.4,0.60238723]
[1734970600199,0.55,3290.4,3289.2,3.0]
[1734970600398,0.55,3290.2,3289.2,3.0]
[1734970600564,0.55,3289.9,3288.8,1.90877041]
[1734970601051,0.55,3289.9,3289.0,0.0303982]
[1734970601250,0.55,3289.9,3288.8,1.90877041]
[1734970601455,0.55,3289.9,3288.5,4.77258403]
[1734970601456,0.55,3289.9,3288.9,0.3181284]
[1734970601770,1.58499866,3289.8,3288.9,0.60159494]
[1734970601965,0.55,3289.7,3288.9,0.60159494]
[1734970602412,0.55,3289.3,3288.1,1.27251361]
[1734970602619,1.5545,3289.0,3288.1,1.27251361]
[1734970602910,0.55,3288.7,3288.1,1.27251361]
[1734970603060,0.55,3288.5,3288.1,1.27251361]
[1734970603461,0.55,3289.9,3288.2,0.03040911]
[1734970603692,0.55,3289.7,3288.2,0.03040911]
[1734970604419,0.55,3289.7,3288.4,0.59568706]
[1734970604709,0.55,3289.7,3288.5,0.03040301]
[1734970605369,0.55,3289.7,3288.4,0.59568706]
[1734970605708,1.5545,3289.6,3288.4,0.59568706]
[1734970605925,0.55,3289.5,3288.4,0.59568706]
[1734970607213,0.55,3289.5,3288.6,1.6521]
[1734970607423,0.55,3289.5,3288.7,0.1682503]
[1734970607585,0.55,3289.5,3288.8,0.03040051]
[1734970607773,0.41520486,3290.2,3288.7,0.1682503]
[1734970607774,1.6656,3289.8,3288.7,0.1682503]
[1734970608119,1.6656,3289.8,3288.7,0.19864813]
[1734970608269,1.6656,3289.8,3288.8,3.0]
[1734970608475,1.6656,3289.8,3288.8,0.48203503]
[1734970608671,1.6656,3289.8,3288.9,0.03040051]
[1734970609078,0.55,3289.7,3288.9,0.03040051]
[1734970609420,1.6656,3289.8,3288.7,0.1682503]
[1734970610426,0.55,3289.7,3288.7,0.1682503]
[1734970611918,0.55,3289.7,3289.0,0.60024199]
[1734970612313,0.53092494,3289.7,3289.0,0.60024199]
[1734970612521,0.5614236,3289.7,3288.7,0.1682503]
[1734970612722,0.5614236,3289.7,3288.4,8.95]
[1734970612723,1.5661,3289.5,3288.4,8.95]
[1734970612904,1.5661,3289.3,3288.4,1.27251361]
[1734970613239,1.5661,3289.3,3288.4,1.59064201]
[1734970613736,1.5661,3289.3,3288.5,0.03040389]
[1734970613890,1.5661,3289.3,3288.5,1.53710389]
[1734970614093,2.18732494,3289.7,3288.5,1.53710389]
[1734970614288,2.18732494,3289.7,3288.5,1.5067]
[1734970614498,2.18732494,3289.7,3288.6,0.03040253]
[1734970614691,2.18732494,3289.7,3288.7,0.15371025]
[1734970615293,2.18732494,3289.7,3288.5,1.5067]
[1734970615797,2.18732494,3289.7,3288.1,4.27251361]
[1734970615798,0.55,3289.5,3288.1,4.5392]
[1734970616034,0.55,3289.2,3288.5,0.60005912]
[1734970617896,0.55,3289.2,3288.6,0.04441268]
[1734970618829,0.03049866,3289.1,3288.6,0.04441268]
[1734970619139,0.55,3289.2,3288.7,0.04430914]
[1734970619744,0.55,3289.2,3288.2,1.27251361]
[1734970620048,0.55,3289.2,3288.8,0.04424544]
[1734970620206,0.55,3289.2,3288.4,1.6315]
[1734970620406,0.55,3289.3,3288.9,0.04441082]
[1734970620647,0.55,3289.3,3288.4,1.6315]
[1734970620858,0.55,3289.3,3289.0,0.04434713]
[1734970621160,0.55,3289.3,3288.5,0.03040249]
[1734970621161,0.55,3289.3,3289.1,0.04428345]
[1734970621513,3.78702185,3290.4,3288.5,1.05491489]
[1734970621514,2.2159,3289.1,3288.5,1.05491489]
[1734970621713,6.03976,3289.8,3288.2,1.27251361]
[1734970621714,0.55,3288.8,3288.2,1.27251361]
[1734970621913,1.6659,3288.9,3288.3,0.03041156]
[1734970622142,0.55,3288.8,3288.2,1.27251361]
[1734970622568,0.58049866,3288.8,3288.2,1.27251361]
[1734970622773,1.6659,3288.5,3287.9,1.27251361]
[1734970622925,0.55,3288.4,3287.9,1.27251361]
[1734970623628,0.55,3288.2,3287.9,1.27251361]
[1734970623829,1.6659,3288.1,3287.3,1.27251361]
[1734970624024,0.55,3288.0,3287.3,1.59064201]
[1734970624238,2.2159,3287.8,3287.3,1.8698652]
[1734970624463,1.60159866,3287.7,3287.3,1.27251361]
[1734970624673,1.5711,3287.5,3287.3,1.27251361]
[1734970625174,0.55,3287.4,3287.0,1.58192694]
[1734970625373,5.16329,3287.1,3287.0,1.58192694]
[1734970625679,13.17243461,3287.1,3287.0,1.58192694]
[1734970625828,8.92582295,3287.1,3287.0,1.58192694]
[1734970626186,8.92582295,3287.1,3285.0,11.87421361]
[1734970626187,0.55,3286.7,3285.0,11.87421361]
[1734970626373,0.55,3286.7,3285.4,0.62041313]
[1734970626528,0.55,3286.7,3285.3,3.04385]
[1734970626879,1.5711,3286.8,3285.7,3.0]
[1734970627036,1.5711,3287.2,3286.0,3.0]
[1734970627230,1.5711,3287.2,3286.1,0.03042176]
[1734970627448,1.5711,3287.2,3286.2,0.30736018]
[1734970628283,1.5711,3287.2,3286.4,0.608461]
[1734970628740,0.55,3287.1,3286.4,0.608461]
[1734970628944,1.5711,3287.6,3286.4,0.608461]
[1734970629144,0.55,3287.5,3286.5,0.03042111]
[1734970629388,0.55,3287.5,3286.6,0.36388821]
[1734970629746,1.5711,3287.6,3286.6,0.36388821]
[1734970629985,1.5711,3287.6,3286.7,0.03041862]
[1734970630299,1.5711,3288.1,3286.9,3.0]
[1734970630596,1.5711,3288.1,3287.1,3.0]
[1734970630799,1.5711,3288.8,3287.4,0.59602103]
[1734970630946,2.01713819,3288.8,3287.4,0.59602103]
[1734970631488,0.03049866,3288.7,3287.4,0.59602103]
[1734970631790,0.44603819,3288.6,3287.4,0.95562313]
[1734970631985,0.55,3288.5,3287.4,0.95562313]
[1734970632193,1.562,3288.4,3287.2,3.0]
[1734970632365,0.55,3288.3,3286.7,1.6517]
[1734970632562,0.44603819,3288.2,3286.9,0.604157]
[1734970632877,0.55,3288.3,3286.9,0.604157]
[1734970633057,0.99603819,3288.3,3286.9,0.604157]
[1734970633840,0.03049866,3288.2,3286.9,0.604157]
[1734970634070,0.03049866,3288.2,3286.9,0.8297427]
[1734970634650,0.99603819,3288.3,3286.9,0.8297427]
[1734970635062,0.03049866,3288.2,3286.9,0.8297427]
[1734970635552,0.03049866,3288.2,3287.0,0.04995359]
[1734970636298,0.99603819,3288.3,3287.0,0.04995359]
[1734970636607,0.55,3288.1,3287.0,0.04995359]
[1734970636747,0.99603819,3288.1,3287.0,0.04995359]
[1734970637407,0.55,3288.1,3287.0,0.43792322]
[1734970637584,1.6627,3288.2,3287.0,0.46834062]
[1734970637754,1.6627,3288.2,3287.0,3.46834062]
[1734970638304,1.6627,3288.2,3287.0,0.46834062]
[1734970638993,1.6627,3289.0,3287.1,11.95]
[1734970639200,1.6627,3289.0,3287.3,3.0]
[1734970639402,1.6627,3289.0,3287.4,0.03041118]
[1734970639558,1.6627,3289.0,3287.5,3.0]
[1734970639761,1.6627,3289.0,3287.6,0.03040667]
[1734970640378,1.6627,3288.8,3287.3,3.0]
[1734970640598,1.6627,3288.8,3286.0,4.00408048]
[1734970640599,1.6627,3288.5,3286.7,1.6652]
[1734970640809,2.13923685,3288.4,3286.7,2.25897136]
[1734970641096,0.55,3288.2,3286.8,0.04453073]
[1734970641270,0.55,3288.0,3286.8,0.04453073]
[1734970641470,0.55,3287.7,3286.8,0.04453073]
[1734970641676,0.55,3287.7,3286.9,0.04446696]
[1734970642085,0.55,3287.7,3287.0,0.04440319]
[1734970642256,0.55,3287.7,3286.4,0.03042017]
[1734970642474,1.6627,3287.8,3286.8,3.0]
[1734970642676,0.55,3288.0,3287.0,1.6652]
[1734970642899,1.6627,3288.1,3287.1,0.08029564]
[1734970643106,1.5609,3288.7,3287.2,3.0]
[1734970643258,1.5609,3288.7,3287.3,0.03040842]
[1734970643599,1.5609,3288.7,3287.4,0.61222285]
[1734970643898,1.5609,3288.7,3287.5,0.03040845]
[1734970644102,1.6242,3289.2,3287.9,0.61936404]
[1734970644405,1.6242,3289.2,3288.1,4.6491]
[1734970644561,1.6242,3289.8,3288.4,3.0]
[1734970644759,1.6242,3289.8,3288.5,0.63450782]
[1734970645027,1.6242,3289.8,3288.1,1.6491]
[1734970645028,0.03049866,3289.7,3288.1,4.6491]
[1734970645195,0.03049866,3289.7,3287.4,0.61222285]
[1734970645196,1.5606,3289.6,3287.7,1.5692]
[1734970645494,2.00663819,3289.6,3288.2,0.60804341]
[1734970646097,0.03049866,3289.5,3288.2,0.60804341]
[1734970646308,2.00663819,3289.6,3288.2,0.60804341]
[1734970646471,0.47653685,3289.5,3288.2,0.60804341]
[1734970646660,0.44603819,3289.5,3288.2,0.60804341]
[1734970646860,1.5606,3289.6,3288.3,0.03040562]
[1734970647061,0.44603819,3289.5,3288.2,0.60804341]
[1734970647290,0.55,3289.4,3287.7,1.5692]
[1734970647502,0.55,3289.4,3287.8,0.45996066]
[1734970647808,0.55,3289.2,3287.8,0.45996066]
[1734970648012,0.55,3289.2,3287.7,1.5692]
[1734970648171,0.55,3288.6,3287.2,1.27251361]
[1734970648505,1.52,3288.3,3287.2,1.27251361]
[1734970648701,1.02653685,3288.2,3287.2,1.27251361]
[1734970649073,1.02653685,3288.2,3286.5,3.36677563]
[1734970649286,1.02653685,3288.2,3286.6,1.23167756]
[1734970649489,0.55,3288.2,3286.7,0.03042012]
[1734970650964,1.52,3288.3,3287.0,1.5415]
[1734970651170,1.52,3288.3,3287.1,0.03041142]
[1734970651368,1.52,3288.3,3287.1,3.03041142]
[1734970651607,1.52,3288.3,3287.2,0.76141814]
[1734970651817,1.52,3288.3,3287.3,3.0]
[1734970652568,0.55,3288.2,3287.4,0.60257312]
[1734970654667,0.55,3288.2,3287.3,3.0]
[1734970654865,0.55,3288.2,3286.5,0.46956202]
[1734970654866,0.55,3288.0,3286.7,3.0]
[1734970655108,0.03049866,3287.9,3286.8,0.57456776]
[1734970655293,0.55,3287.8,3286.8,0.57456776]
[1734970655627,0.55,3287.8,3286.2,1.27251361]
[1734970655628,0.55,3287.5,3286.2,1.27251361]
[1734970655782,0.03049866,3287.4,3286.2,1.27251361]
[1734970655982,1.615,3287.3,3286.2,1.27251361]
[1734970656170,1.615,3287.3,3286.3,0.04451099]
[1734970656171,0.55,3286.9,3286.3,0.04451099]
[1734970656364,0.55,3286.7,3286.3,0.04451099]
[1734970656693,0.55,3286.4,3285.8,1.27251361]
[1734970656895,0.55,3286.4,3285.9,0.04457296]
[1734970657193,0.55,3286.2,3285.9,0.04457296]
[1734970657394,0.03049866,3286.1,3285.9,0.04457296]
[1734970657765,0.03049866,3286.1,3284.4,1.27251361]
[1734970658068,1.615,3286.3,3284.8,1.576]
[1734970658297,1.615,3286.3,3284.9,0.2900712]
[1734970658983,1.615,3286.3,3285.3,0.60684237]
[1734970659418,1.615,3286.3,3285.4,0.04192684]
[1734970659912,0.58049866,3286.2,3285.4,0.04192684]
[1734970660100,0.55,3286.0,3284.4,4.27251361]
[1734970660295,0.03049866,3285.9,3284.5,0.66031231]
[1734970660502,0.55,3286.0,3284.5,0.66031231]
[1734970660889,0.55,3286.0,3284.6,0.61328093]
[1734970661107,0.55,3286.0,3284.7,0.04206897]
[1734970661269,0.55,3286.0,3284.7,0.07250755]
[1734970661616,0.55,3286.0,3284.7,0.04206897]
[1734970661908,0.03049866,3285.9,3284.7,0.04206897]
[1734970662716,0.55,3285.7,3284.7,0.04206897]
[1734970662872,4.97573819,3285.8,3283.8,1.27251361]
[1734970662873,0.55,3285.5,3283.8,2.87141361]
[1734970663070,0.03049866,3285.4,3283.9,1.41596879]
[1734970663425,1.5297,3285.6,3284.1,1.6227]
[1734970663629,1.5297,3285.6,3284.2,3.07527754]
[1734970663769,1.5297,3285.6,3284.2,3.11825281]
[1734970664086,1.5297,3285.6,3284.3,3.0]
[1734970664286,1.5297,3285.6,3284.4,0.0428603]
[1734970664474,1.5297,3285.6,3284.5,0.33472359]
[1734970664676,1.5297,3285.6,3284.6,0.04274534]
[1734970665215,0.03049866,3285.5,3284.6,0.04274534]
[1734970665381,0.99603819,3285.5,3284.6,0.04274534]
[1734970665583,1.5297,3285.6,3284.6,0.04274534]
[1734970665820,1.5297,3285.6,3284.6,0.61561373]
[1734970665988,1.5297,3285.6,3284.7,0.04268787]
[1734970666189,0.58049866,3285.5,3284.7,0.04268787]
[1734970666695,0.58049866,3285.5,3284.8,0.03440655]
[1734970666696,1.5247,3285.4,3284.8,0.03440655]
[1734970666899,1.5247,3285.4,3284.2,0.03044258]
[1734970667210,1.5247,3285.4,3284.3,0.26235775]
[1734970667406,0.03049866,3285.3,3284.3,0.03462761]
[1734970667705,0.03049866,3285.3,3284.1,1.6227]
[1734970668028,1.5247,3285.4,3284.1,1.6227]
[1734970668316,1.5247,3285.4,3284.2,0.06271428]
[1734970668496,1.5247,3285.4,3284.2,0.03227218]
[1734970668817,1.5247,3285.4,3284.3,0.16549722]
[1734970669217,1.5247,3285.4,3284.4,0.03229261]
[1734970669877,0.03049866,3285.3,3284.4,0.03229261]
[1734970670125,1.5247,3285.4,3284.4,0.06273488]
[1734970670272,1.6317,3285.7,3284.4,3.06273488]
[1734970670477,1.5928,3286.7,3284.6,1.6039]
[1734970670775,1.5928,3286.5,3284.7,0.0321374]
[1734970671011,0.03049866,3286.4,3284.7,0.0321374]
[1734970671229,3.07335866,3286.4,3284.7,0.0321374]
[1734970671423,0.03049866,3286.4,3284.8,0.59730096]
[1734970671580,1.5928,3286.5,3284.8,0.59730096]
[1734970671929,1.5928,3286.5,3285.0,1.5943]
[1734970672084,1.5928,3286.5,3285.1,0.25240564]
[1734970673995,1.5928,3286.5,3285.2,1.514]
[1734970674421,1.5928,3286.5,3285.3,0.03376463]
[1734970675913,1.6037,3287.0,3285.3,3.03376463]
[1734970676123,1.6037,3287.0,3285.5,3.0]
[1734970676321,1.6037,3287.0,3285.6,0.60964105]
[1734970676641,3.04293,3286.4,3285.6,0.03633758]
[1734970676922,1.6037,3286.2,3284.9,1.5861]
[1734970677105,3.0433,3285.9,3284.9,1.5861]
[1734970677311,0.03049866,3285.8,3284.9,1.5861]
[1734970677534,1.6444,3285.6,3284.2,1.5611]
[1734970677745,1.6444,3285.6,3284.3,0.28336136]
[1734970679695,1.61,3286.0,3284.5,1.5961]
[1734970679999,0.03049866,3285.9,3284.5,1.5961]
[1734970680340,1.61,3286.0,3284.5,1.5961]
[1734970680630,1.61,3286.0,3284.6,0.03043803]
[1734970680790,1.61,3286.0,3284.7,0.1626538]
[1734970681222,0.03049866,3285.9,3284.7,0.1626538]
[1734970681592,1.61,3286.0,3284.7,0.1626538]
[1734970682438,0.03049866,3286.2,3284.8,1.5299]
[1734970682845,0.58049866,3286.2,3284.8,1.5299]
[1734970683140,0.58049866,3286.2,3284.4,8.95]
[1734970683141,3.04361,3285.6,3284.4,1.5845]
[1734970683292,0.03049866,3285.5,3284.4,1.5845]
[1734970683490,1.5242,3285.4,3283.3,1.5845]
[1734970683770,0.03049866,3285.3,3283.6,1.5845]
[1734970684038,1.5242,3285.8,3283.9,3.04508]
[1734970684220,1.5242,3285.8,3284.0,1.5845]
[1734970684427,1.5242,3286.1,3284.2,1.5845]